Workbook

Sheet Feuil1
A1: BUDGET PREVISIONNEL 2025
B4: COMPTES DE CHARGES (Dans les parties grisées, numérotées selon le plan comptable, indiquez les sous-totaux) | C4: Montant | D4: % | F4: COMPTES DE PRODUITS (Dans les parties grisées, numérotées selon le plan comptable, indiquez les sous-totaux) | G4: Montant | H4: %
A5: 60 | B5: ACHATS | C5: =SUM(C6:C13) -> 1500 | D5: =SUM(C5/C66) -> 0.07537688442 | E5: 70 | F5: VENTES DE PRODUITS FINIS ET PRESTATIONS | G5: =SUM(G6:G14) -> 11000 | H5: =SUM(G5/G66) -> 0.5527638191
B6: Petit accessoire musical | C6: 500 | F6: Prestations | G6: 6000
B7: Matériel Sonorisation | C7: 700 | F7: Billeterie | G7: 2000
B8: Tenues de scène et accessoires | C8: 300 | F8: Disques physiques | G8: 3000
F9: Produits Dérivés | G9: 0
A15: 61 | B15: SERVICES EXTERIEURS | C15: =SUM(C16:C21) -> 1200 | D15: =SUM(C15/C66) -> 0.06030150754 | E15: 74 | F15: SUBVENTIONS D'EXPLOITATION | G15: =SUM(G16+G21+G25+G29+G33+G39+G44+G50) -> 8400 | H15: =SUM(G15/G66) -> 0.4221105528
B16: Locations immobilières : résidence artistes | C16: 600 | F16: FONDS EUROPEENS | G16: =SUM(G17:G20) -> 0
B17: Entretien et réparations | C17: 50
B18: Primes d'assurances | C18: 500
B19: Documentations | C19: 50
F21: ETAT | G21: =SUM(G22:G24) -> 0
F25: REGION NOUVELLE AQUITAINE | G25: =SUM(G26:G28) -> 0
A26: 62 | B26: AUTRES SERVICES EXTERIEURS | C26: =SUM(C27:C36) -> 17200 | D26: =SUM(C26/C66) -> 0.864321608 | F26: DRAC
B27: Rémunérations d'intermédiaires et honoraires : studio, musiciens, mixage, mastering | C27: 13000
B28: Publicité - Publications | C28: 2500
B29: Déplacements liés aux activités et animations | C29: 500 | F29: CD64 | G29: =SUM(G30:G32) -> 0
B30: Missions et réceptions | C30: 1000
B31: Frais postaux | C31: 150
B32: Services bancaires | C32: 50
F33: CAPB | G33: =SUM(G34:G35) -> 2000
F34: Subvention "Clip" (50%) | G34: 1000
F35: Subvention Contrat de cession | G35: 1000
A37: 63 | B37: IMPOTS ET TAXES | C37: =SUM(C38:C40) -> 0 | D37: =SUM(C37/C66) -> 0
F39: SUBVENTIONS PRIVEES | G39: =SUM(G40:G43) -> 2500
F40: Entreprises | G40: 2000
F41: Dons de particuliers | G41: 500
A42: 64 | B42: CHARGES DE PERSONNEL | C42: =SUM(C43:C47) -> 0 | D42: =SUM(C42/C66) -> 0
B43: Rémunérations brutes
F44: AUTRES SUBVENTIONS | G44: =SUM(G45:G49) -> 1500
B45: Charges sociales | F45: SACEM | G45: 1000
F46: ADAMI
F47: CNM
F48: FOND DE DOTATION CREDIT AGRICOLE | G48: 500
A49: 65 | B49: AUTRES CHARGES DE GESTION COURANTE | C49: =SUM(C50:C51) -> 0 | D49: =SUM(C49/C66) -> 0
B50: Charges diverses | F50: MECENAT | G50: 2400
A53: 66 | B53: CHARGES FINANCIERES | C53: =SUM(C54) -> 0 | D53: =SUM(C53/C66) -> 0 | E53: 75 | F53: AUTRES PRODUITS DE GESTION COURANTE | G53: =SUM(G54:G55) -> 500 | H53: =SUM(G53/G66) -> 0.02512562814
B54: Intérêts Emprunt | F54: Participation des adhérents (cotisation, participation aux frais d'utilisation) | G54: 500
F55: Autres (à préciser)
A56: 67 | B56: CHARGES EXCEPTIONNELLES | C56: =SUM(C57) -> 0 | D56: =SUM(C56/C66) -> 0 | E56: 76 | F56: PRODUITS FINANCIERS | G56: 0 | H56: =SUM(G56/G66) -> 0
E57: 77 | F57: PRODUITS EXCEPTIONNELS | G57: 0 | H57: =SUM(G57/G66) -> 0
A58: 68 | B58: DOTATIONS | C58: =SUM(C59:C60) -> 0 | D58: =SUM(C58/C66) -> 0 | E58: 78 | F58: REPRISES SUR AMORTISSEMENTS ET PROVISIONS | G58: =SUM(G59) -> 0 | H58: =SUM(G58/G66) -> 0
F59: Reprises sur provisions
A63: 69 | B63: IMPOTS SUR LES BENEFICES ET ASSIMILES | C63: =SUM(C64) -> 0 | D63: =SUM(C63/C66) -> 0 | E63: 79 | F63: TRANSFERTS DE CHARGES | G63: =SUM(G64) -> 0 | H63: =SUM(G63/G66) -> 0
B66: TOTAL GENERAL | C66: =SUM(C63,C58,C56,C53,C49,C42,C37,C26,C15,C5) -> 19900 | D66: =SUM(D63+D58+D56+D53+D49+D42+D37+D26+D15+D5) -> 1 | F66: TOTAL GENERAL | G66: =SUM(G63,G58,G57,G56,G53,G15,G5) -> 19900 | H66: =SUM(H63+H58+H57+H56+H53+H15+H5) -> 1
F67: =SUM(G66-C66) -> 0
B68: Fait à Bayonne, le 01/10/2024
F69: NOM - Prénom de Président association TXORIA BEZALA
F70: LABORDE Pauline
